bitfinex/quotes_SOLUSD_20250207
["timestamp","ask_amount","ask_price","bid_price","bid_amount"]
[1738947835255,43.78648523,197.04,196.96,40.23398523]
[1738947835627,40.23398523,197.04,196.96,40.23398523]
[1738947835960,81.3,197.07,196.99,40.23398523]
[1738947835961,43.78618523,197.06,196.99,40.23398523]
[1738947836170,121.53398523,197.07,196.99,40.23398523]
[1738947836360,81.3,197.07,197.01,40.23398523]
[1738947836651,40.23398523,197.09,197.01,40.23398523]
[1738947836652,3.5517,197.09,197.01,40.23398523]
[1738947836838,40.23398523,197.08,197.01,40.23398523]
[1738947837145,40.23398523,197.09,197.01,45.30958523]
[1738947837541,60.26398523,197.11,197.03,40.23398523]
[1738947837733,40.26398523,197.11,197.04,40.23398523]
[1738947837937,0.03,197.11,197.05,40.23398523]
[1738947838132,40.23398523,197.12,197.04,40.23398523]
[1738947838328,40.23398523,197.09,197.0,40.99500921]
[1738947838655,40.23398523,197.04,196.96,41.80198523]
[1738947838830,40.23398523,197.03,196.96,6.645]
[1738947839157,40.23398523,197.02,196.96,6.645]
[1738947839328,13.41184853,197.08,196.99,40.23398523]
[1738947839329,40.23398523,197.06,196.99,40.23398523]
[1738947839535,81.3,197.07,197.02,40.23398523]
[1738947839734,40.23398523,197.12,197.04,40.23398523]
[1738947839948,40.23398523,197.11,197.04,40.23398523]
[1738947840258,82.16957734,197.1,196.97,40.23398523]
[1738947840462,40.23398523,197.06,196.99,40.23398523]
[1738947840755,40.23398523,197.09,197.02,40.23398523]
[1738947840946,81.3,197.14,197.07,40.23398523]
[1738947841137,81.3,197.14,197.0,42.99517248]
[1738947841138,125.59198523,197.14,197.06,40.23398523]
[1738947841337,81.3,197.14,197.08,40.23398523]
[1738947841543,40.23398523,197.15,197.08,40.23398523]
[1738947841747,81.363,197.19,197.08,40.23398523]
[1738947841748,81.363,197.19,197.14,40.23398523]
[1738947842058,81.363,197.19,197.1,0.76072335]
[1738947842248,81.363,197.19,197.14,40.23398523]
[1738947842635,0.063,197.19,197.15,40.23398523]
[1738947842838,40.29698523,197.19,197.11,40.23398523]
[1738947843034,13.41184853,197.16,197.05,5.83540164]
[1738947843254,81.3,197.18,197.06,0.76100301]
[1738947843733,81.3,197.18,197.05,5.83546818]
[1738947844058,20.0,197.15,197.03,5.0753]
[1738947844241,40.23398523,197.12,197.05,40.23398523]
[1738947844558,13.53733853,197.17,197.03,45.30928523]
[1738947844559,40.23398523,197.11,197.03,45.30928523]
[1738947844858,40.23398523,197.06,196.99,40.23398523]
[1738947845029,40.23398523,197.04,196.98,5.0766]
[1738947845229,4.0592,197.08,196.98,40.23398523]
[1738947845431,4.0592,197.08,196.97,0.76134061]
[1738947845632,4.0592,197.08,196.96,6.645]
[1738947845925,4.0592,197.08,196.97,0.12549]
[1738947846130,81.3,197.1,196.99,20.12549]
[1738947846358,44.29198523,197.14,197.06,40.23398523]
[1738947846530,40.23398523,197.13,197.06,40.23398523]
[1738947846736,40.23398523,197.16,197.09,40.23398523]
[1738947846945,40.29698523,197.19,197.12,40.23398523]
[1738947847141,40.29698523,197.19,197.14,40.23398523]
[1738947847142,0.063,197.19,197.14,40.23398523]
[1738947847342,0.063,197.19,197.15,40.23398523]
[1738947848032,0.063,197.19,197.14,40.23398523]
[1738947848233,0.063,197.19,197.13,40.23398523]
[1738947848432,40.23398523,197.18,197.11,40.23398523]
[1738947848659,0.063,197.19,197.12,0.12549]
[1738947849170,0.063,197.19,197.13,5.83334594]
[1738947849342,0.063,197.19,197.13,5.0727]
[1738947849666,0.063,197.19,197.15,40.23398523]
[1738947850371,0.063,197.19,197.16,40.23398523]
[1738947850549,0.063,197.19,197.18,40.23398523]
[1738947851540,0.063,197.19,197.18,40.35947523]
[1738947851748,0.03,197.24,197.22,0.12549]
[1738947852043,0.03,197.24,197.21,20.0]
[1738947852044,0.03,197.24,197.23,41.11969725]
[1738947852454,0.03,197.24,197.23,40.23398523]
[1738947852978,0.03,197.24,197.2,40.23398523]
[1738947853174,0.03,197.24,197.13,5.0727]
[1738947853338,0.03,197.19,197.11,1.6493]
[1738947853538,40.23398523,197.18,197.09,6.5385]
[1738947853852,40.23398523,197.15,197.09,0.063]
[1738947854171,40.23398523,197.16,197.15,25.0]
[1738947854388,40.23398523,197.17,197.15,25.0]
[1738947854790,40.23398523,197.16,197.15,25.0]
[1738947856372,57.70343376,197.16,197.15,25.0]
[1738947856697,20.0,197.13,197.09,0.063]
[1738947856985,40.23398523,197.1,197.09,0.063]
[1738947858486,44.29278523,197.1,197.09,0.063]
[1738947858990,57.83012376,197.1,197.09,0.063]
[1738947860299,139.25561376,197.1,197.09,0.063]
[1738947860462,40.23398523,197.04,196.95,40.23398523]
[1738947860780,40.23398523,197.02,196.95,40.23398523]
[1738947860989,40.23398523,197.02,196.95,45.31128523]
[1738947861597,40.23398523,197.06,196.99,40.23398523]
[1738947861895,121.53398523,197.08,197.01,40.23398523]
[1738947862090,81.3,197.08,197.01,45.30978523]
[1738947862571,121.53398523,197.08,197.01,45.30978523]
[1738947862777,125.08578523,197.08,196.99,40.23398523]
[1738947863478,40.23398523,197.06,196.98,45.31038523]
[1738947863687,40.23398523,197.02,196.95,40.23398523]
[1738947863881,14.28142587,197.07,196.93,40.23398523]
[1738947863882,40.23398523,197.0,196.93,40.23398523]
[1738947864079,40.23398523,197.0,196.89,0.063]
[1738947864080,40.23398523,196.95,196.89,0.063]
[1738947864683,40.23398523,196.96,196.89,45.37568523]
[1738947865080,40.23398523,196.95,196.89,0.063]
[1738947865282,40.23398523,196.92,196.89,0.063]
[1738947865603,40.23398523,196.9,196.89,0.063]
[1738947866101,43.78908523,196.9,196.89,0.063]
[1738947867194,40.23398523,196.92,196.89,0.063]
[1738947867394,40.23398523,196.93,196.89,0.063]
[1738947868499,44.99398523,196.97,196.9,40.23398523]
[1738947868701,84.8531,197.01,196.94,40.23398523]
[1738947868995,1.0,197.06,197.0,40.23398523]
[1738947868996,3.5523,197.06,197.0,40.23398523]
[1738947869203,3.5521,197.07,196.95,20.0]
[1738947869409,84.8518,197.09,197.02,40.23398523]
[1738947869702,40.23398523,197.12,197.04,40.23398523]
[1738947869903,3.5511,197.13,197.07,40.23398523]
[1738947870198,43.81468523,197.15,197.07,40.23398523]
[1738947870401,0.03,197.15,197.1,40.23398523]
[1738947870698,0.03,197.15,197.09,0.12549]
[1738947870889,0.03,197.15,197.14,40.23398523]
[1738947871503,0.03,197.15,197.11,40.23398523]
[1738947871680,0.03,197.15,197.12,40.23398523]
[1738947871877,0.03,197.15,197.14,40.23398523]
[1738947872391,40.26398523,197.15,197.08,40.23398523]
[1738947872791,0.03,197.15,197.1,40.23398523]
[1738947873091,0.03,197.15,197.08,40.23398523]
[1738947873300,40.26398523,197.15,197.08,40.23398523]
[1738947873608,22.64454285,197.17,197.09,40.23398523]
[1738947873777,40.23398523,197.16,197.08,40.23398523]
[1738947874295,3.5799,197.19,197.13,40.23398523]
[1738947874477,0.03,197.19,197.12,40.23398523]
[1738947874676,13.69282853,197.19,197.03,0.76071977]
[1738947874984,20.0,197.15,197.02,5.0754]
[1738947875302,13.53733853,197.14,197.0,5.0759]
[1738947875499,0.12549,197.12,197.0,5.0759]
[1738947875688,20.0,197.09,196.98,5.0765]
[1738947875878,40.23398523,197.03,196.96,45.31098523]
[1738947876085,40.23398523,197.02,196.95,40.23398523]
[1738947876282,40.23398523,197.03,196.95,45.31118523]
[1738947876584,81.3,197.07,197.0,40.23398523]
[1738947876787,40.23398523,197.1,197.02,40.23398523]
[1738947876982,40.23398523,197.07,196.99,40.23398523]
[1738947877185,40.23398523,197.06,196.98,60.23398523]
[1738947877392,40.23398523,197.09,197.02,40.23398523]
[1738947878600,43.78528523,197.11,197.02,45.30938523]
[1738947878796,40.23398523,197.11,197.02,45.30938523]
[1738947878996,81.3,197.12,197.06,40.23398523]
[1738947879313,43.78428523,197.17,197.11,40.23398523]
[1738947879606,43.78428523,197.17,197.02,18.7644]
[1738947879607,0.03,197.19,197.15,40.23398523]
[1738947879782,0.03,197.19,197.08,0.76070083]
[1738947879972,0.03,197.19,197.05,20.0]
[1738947880179,40.23398523,197.15,197.08,40.23398523]
[1738947880404,40.26398523,197.19,197.12,40.23398523]
[1738947880604,40.26398523,197.19,197.11,40.23398523]
[1738947881374,40.26398523,197.19,197.09,5.0736]
[1738947881375,40.23398523,197.14,197.06,40.23398523]
[1738947881580,40.23398523,197.11,197.03,40.23398523]
[1738947881780,40.23398523,197.1,197.02,45.30948523]
[1738947881979,40.23398523,197.09,197.02,40.23398523]
[1738947882198,40.23398523,197.07,197.0,5.0759]
[1738947882602,40.23398523,197.08,197.0,40.23398523]
[1738947882913,121.53398523,197.13,197.06,40.23398523]
[1738947883075,84.8509,197.13,197.06,40.23398523]
[1738947883280,0.12549,197.06,196.89,2.34852075]
[1738947883598,20.0,197.03,196.91,5.0784]
[1738947883906,0.74408734,197.02,196.91,5.0784]
[1738947884090,82.04408734,197.02,196.91,5.0784]
[1738947884287,82.04408734,197.02,196.89,5.1417]
[1738947884605,82.04408734,197.02,196.93,40.23398523]
[1738947884606,43.78708523,197.01,196.93,40.23398523]
[1738947884796,40.23398523,196.99,196.91,40.23398523]
[1738947885000,13.53733853,197.0,196.89,40.29698523]
[1738947885001,40.23398523,196.97,196.89,40.29698523]
[1738947885522,40.23398523,196.93,196.89,0.063]
[1738947885880,0.74408734,196.95,196.89,0.063]
[1738947885881,40.23398523,196.91,196.89,0.063]
[1738947886083,40.23398523,196.93,196.89,0.063]
[1738947886710,43.78858523,196.93,196.89,0.063]
[1738947887001,40.23398523,196.93,196.89,0.063]
[1738947888210,40.23398523,196.91,196.89,0.063]
[1738947888505,138.75191376,196.9,196.89,0.063]
[1738947888685,0.12549,196.89,196.81,0.063]
[1738947888883,40.23398523,196.85,196.81,0.063]
[1738947889077,81.3,196.84,196.81,0.063]
[1738947889684,81.3,196.83,196.81,0.063]
[1738947890401,81.3,196.82,196.81,0.063]
[1738947892918,43.91597523,196.82,196.81,0.063]
[1738947893101,57.45331376,196.82,196.81,0.063]
[1738947894121,40.23398523,196.83,196.81,0.063]
[1738947894416,40.23398523,196.83,196.81,0.0001]
[1738947894417,190.9409011,196.82,196.81,0.0001]
[1738947894616,14.66282853,196.81,196.8,0.0001]
[1738947895007,13.53733853,196.77,196.71,0.063]
[1738947895208,40.23398523,196.76,196.71,0.063]
[1738947895421,4.78,196.79,196.74,40.23398523]
[1738947895634,4.78,196.79,196.73,40.23398523]
[1738947896203,4.78,196.79,196.74,40.23398523]
[1738947896408,4.78,196.79,196.76,40.23398523]
[1738947896613,40.23398523,196.78,196.71,40.29698523]
[1738947896818,40.23398523,196.76,196.71,0.063]
[1738947897422,13.53733853,196.78,196.72,40.23398523]
[1738947898006,13.53733853,196.78,196.71,0.063]
[1738947898007,40.23398523,196.77,196.71,0.063]
[1738947898201,43.79158523,196.76,196.71,0.063]
[1738947898498,40.23398523,196.72,196.71,0.063]
[1738947898704,53.77132376,196.72,196.71,0.063]
[1738947899920,40.23398523,196.74,196.71,0.063]
[1738947900308,53.77132376,196.72,196.71,0.063]
[1738947900841,20.12549,196.68,196.6,0.063]
[1738947901128,13.41184853,196.67,196.6,0.063]
[1738947901627,0.86957734,196.66,196.6,0.063]
[1738947902032,40.23398523,196.65,196.6,0.063]
[1738947902405,43.79358523,196.65,196.6,0.063]
[1738947902633,40.23398523,196.61,196.6,0.063]
[1738947902830,54.5154111,196.61,196.6,0.063]
[1738947903234,54.6409011,196.61,196.6,0.063]
[1738947903833,54.6409011,196.61,196.57,0.063]
[1738947903834,20.0,196.58,196.57,0.063]
[1738947904033,94.96282853,196.57,196.5,0.063]
[1738947904238,77.45821376,196.55,196.5,0.063]
[1738947904411,94.96282853,196.54,196.45,40.23398523]
[1738947904607,121.53398523,196.54,196.46,40.23398523]
[1738947904914,121.53398523,196.54,196.43,5.0908]
[1738947904915,40.23398523,196.52,196.44,40.23398523]
[1738947905123,40.23398523,196.5,196.43,45.32478523]
[1738947905311,40.23398523,196.5,196.42,40.23398523]
[1738947905639,40.23398523,196.51,196.44,40.23398523]
[1738947906008,40.35947523,196.5,196.43,40.23398523]
[1738947906214,40.35947523,196.5,196.42,40.23398523]
[1738947906533,40.23398523,196.45,196.39,0.03]
[1738947906722,14.15593587,196.49,196.39,5.1218]
[1738947906931,43.79638523,196.5,196.39,5.1218]
[1738947907126,40.23398523,196.47,196.39,5.1218]
[1738947907533,40.23398523,196.48,196.41,40.23398523]
[1738947907912,40.23398523,196.49,196.41,40.23398523]
[1738947908239,81.3,196.53,196.48,40.23398523]
[1738947908422,129.32769775,196.64,196.52,40.23398523]
[1738947908628,92.65361252,196.64,196.57,40.23398523]
[1738947909041,132.88759775,196.64,196.56,40.23398523]
[1738947909216,0.12549,196.62,196.55,40.23398523]
[1738947909419,13.53733853,196.62,196.55,40.23398523]
[1738947909840,17.09753853,196.62,196.55,40.23398523]
[1738947910347,53.77132376,196.57,196.47,40.23398523]
[1738947910517,40.23398523,196.51,196.43,45.32458523]
[1738947910722,40.23398523,196.51,196.43,40.23398523]
[1738947911038,40.23398523,196.49,196.41,45.32508523]
[1738947911252,40.23398523,196.51,196.43,40.23398523]
[1738947911435,40.23398523,196.53,196.45,40.23398523]
[1738947911834,40.23398523,196.51,196.43,40.23398523]
[1738947912030,40.23398523,196.49,196.41,40.23398523]
[1738947912344,13.53733853,196.48,196.41,40.23398523]
[1738947912751,121.53398523,196.51,196.43,40.23398523]
[1738947912933,13.53733853,196.5,196.43,40.23398523]
[1738947913752,81.3,196.51,196.45,40.23398523]
[1738947913959,81.3,196.51,196.47,40.23398523]
[1738947914138,81.3,196.51,196.45,40.23398523]
[1738947914450,13.53733853,196.5,196.43,40.26398523]
[1738947914655,14.28142587,196.5,196.43,40.26398523]
[1738947915037,13.53733853,196.5,196.43,40.26398523]
[1738947915950,125.09608523,196.51,196.43,40.26398523]
[1738947915951,81.3,196.51,196.46,40.23398523]
[1738947916248,3.5608,196.58,196.5,40.23398523]
[1738947916432,81.3,196.59,196.55,40.23398523]
[1738947916633,4.8,196.63,196.58,40.23398523]
[1738947916824,4.8,196.63,196.52,0.12549]
[1738947917154,20.0,196.67,196.49,17.7706741]
[1738947917444,20.0,196.67,196.5,2.05728991]
[1738947917445,1.0,196.6,196.5,2.05728991]
[1738947917829,1.0,196.57,196.5,1.6571]
[1738947918025,1.0,196.54,196.5,40.23398523]
[1738947918245,40.23398523,196.54,196.47,40.23398523]
[1738947918449,40.23398523,196.53,196.46,40.23398523]
[1738947918625,40.23398523,196.5,196.43,0.03]
[1738947918941,40.23398523,196.47,196.43,0.03]
[1738947919656,40.23398523,196.45,196.43,0.03]
[1738947920027,3.5634,196.44,196.43,0.03]
[1738947920228,44.75194614,196.45,196.43,0.03]
[1738947920450,53.89681376,196.44,196.43,0.03]
[1738947921621,20.25098,196.4,196.39,0.03]
[1738947921820,74.85195034,196.4,196.39,0.03]
[1738947922026,78.41605034,196.4,196.39,0.03]
[1738947922730,78.41605034,196.4,196.39,0.0001]
[1738947922930,77.46091376,196.4,196.39,0.0001]
[1738947923349,78.41588618,196.4,196.39,0.0001]
[1738947923529,118.64987141,196.4,196.39,0.0001]
[1738947923729,119.69489899,196.4,196.39,0.0001]
[1738947924025,117.69489899,196.4,196.39,0.0001]
[1738947924250,20.0,196.37,196.36,0.063]
[1738947924459,79.67210874,196.37,196.36,0.063]
[1738947924849,20.0,196.29,196.22,40.23398523]
[1738947925056,20.0,196.29,196.14,1.0]
[1738947925057,40.23398523,196.26,196.19,40.23398523]
[1738947925240,40.23398523,196.26,196.19,40.26398523]
[1738947925641,40.23398523,196.29,196.21,40.23398523]
[1738947925847,40.23398523,196.25,196.19,0.03]
[1738947926159,13.41184853,196.2,196.19,0.03]
[1738947926458,13.66282853,196.2,196.19,0.03]
[1738947926635,53.77132376,196.2,196.19,0.03]
[1738947926828,13.53733853,196.2,196.19,0.03]
[1738947927028,13.41184853,196.2,196.19,0.03]
[1738947927234,54.85267794,196.2,196.19,0.03]
[1738947928069,13.41184853,196.11,196.0,40.23398523]
[1738947928234,13.41184853,196.11,195.93,8.651]
[1738947928235,13.41184853,196.08,196.02,40.23398523]
[1738947928755,53.77132376,196.08,196.01,40.23398523]
[1738947928948,13.41184853,196.08,196.03,40.23398523]
[1738947929150,53.89681376,196.08,196.01,40.23398523]
[1738947929365,40.23398523,196.02,195.9,45.33848523]
[1738947929563,0.95659793,196.07,195.95,40.23398523]
[1738947929564,0.95677778,196.01,195.95,40.23398523]
[1738947929767,13.41184853,196.0,195.95,40.23398523]
[1738947930083,13.41184853,196.0,195.94,40.23398523]
[1738947930256,40.23398523,195.97,195.9,40.23398523]
[1738947930453,40.23398523,195.93,195.86,40.23398523]
[1738947930755,40.23398523,195.91,195.85,40.23398523]
[1738947930954,13.41184853,195.9,195.83,5.1063]
[1738947931171,13.41184853,195.88,195.82,12.9524366]
[1738947931374,0.12549,195.87,195.82,12.9524366]
[1738947931670,13.41184853,195.86,195.82,12.9524366]
[1738947931881,0.12549,195.89,195.83,40.23398523]
[1738947932063,41.19148154,195.89,195.82,12.9524366]
[1738947932377,4.96,195.9,195.83,40.23398523]
[1738947932542,13.41184853,195.87,195.82,12.9524366]
[1738947932744,40.23398523,195.86,195.82,12.9524366]
[1738947933046,13.53733853,195.85,195.82,12.9524366]
[1738947933241,14.49499926,195.85,195.82,12.9524366]
[1738947933443,40.23398523,195.84,195.82,12.9524366]
[1738947934054,13.41184853,195.83,195.82,12.9524366]
[1738947934248,13.66282853,195.83,195.82,12.9524366]
[1738947934773,13.53733853,195.83,195.82,12.9524366]
[1738947935273,13.66282853,195.83,195.82,12.9524366]
[1738947935471,40.23398523,195.88,195.82,12.9524366]
[1738947935654,0.95753742,195.9,195.83,40.23398523]
[1738947935857,40.23398523,195.92,195.85,40.23398523]
[1738947936175,5.36,195.95,195.87,40.23398523]
[1738947936470,13.53733853,195.94,195.87,40.23398523]
[1738947936776,53.77132376,195.94,195.85,40.23398523]
[1738947936951,5.36,195.95,195.91,40.23398523]
[1738947937153,5.36,195.95,195.89,40.23398523]
[1738947937567,5.36,195.95,195.87,40.23398523]
[1738947937772,0.12549,195.94,195.87,40.23398523]
[1738947938072,40.23398523,195.94,195.85,25.60434472]
[1738947938449,5.36,195.95,195.89,40.23398523]
[1738947938650,40.23398523,196.0,195.91,40.23398523]
[1738947938847,40.23398523,196.04,195.95,40.23398523]
[1738947939061,40.23398523,196.04,195.97,40.23398523]
[1738947939253,41.19074731,196.06,195.97,40.23398523]
[1738947939475,40.23398523,196.06,195.97,40.23398523]
[1738947939685,40.23398523,196.06,195.99,40.23398523]
[1738947939854,0.12549,196.05,195.97,40.23398523]
[1738947940057,43.80578523,195.98,195.88,5.105]
[1738947940252,40.23398523,195.95,195.89,40.23398523]
[1738947940472,40.23398523,195.97,195.89,40.23398523]
[1738947940786,40.23398523,195.95,195.88,5.105]
[1738947940974,40.23398523,195.99,195.91,40.23398523]
[1738947941154,40.23398523,196.03,195.95,40.23398523]
[1738947941664,40.23398523,196.03,195.97,40.23398523]
[1738947942073,40.23398523,196.01,195.95,40.23398523]
[1738947942260,40.23398523,196.03,195.95,40.23398523]
[1738947942581,40.23398523,196.03,195.95,45.33708523]
[1738947942876,40.23398523,196.03,195.97,40.23398523]
[1738947943082,0.95670626,196.04,195.97,40.23398523]
[1738947943282,40.23398523,196.05,195.97,40.23398523]
[1738947943579,40.23398523,195.99,195.89,40.23398523]
[1738947943759,40.23398523,195.95,195.87,40.23398523]
[1738947943968,40.23398523,195.97,195.9,40.23398523]
[1738947944150,40.23398523,195.97,195.9,45.33838523]
[1738947944350,40.23398523,196.01,195.93,40.23398523]
[1738947944547,40.23398523,196.01,195.94,40.23398523]
[1738947944747,40.23398523,196.0,195.92,40.23398523]
[1738947945158,43.80438523,196.06,195.98,40.23398523]
[1738947945360,13.53733853,196.04,195.9,58.09998523]
[1738947945657,40.23398523,195.96,195.86,12.7636]
[1738947946081,0.9571836,195.98,195.91,40.23398523]
[1738947946082,40.35947523,195.98,195.91,40.23398523]
[1738947946380,44.76191064,196.03,195.96,40.23398523]
[1738947946559,40.23398523,196.0,195.86,12.7636]
[1738947946756,40.23398523,196.0,195.92,40.23398523]
[1738947946955,0.95702316,196.02,195.83,5.1064]
[1738947946956,40.23398523,195.93,195.83,5.1064]
[1738947947163,14.36912793,195.92,195.82,12.9824366]
[1738947947452,20.0,195.88,195.82,12.9824366]
[1738947947669,0.95763648,195.87,195.82,12.9824366]
[1738947948183,43.80788523,195.86,195.82,12.9824366]
[1738947948389,0.12549,195.84,195.82,12.9824366]
[1738947948556,40.23398523,195.84,195.82,12.9824366]
[1738947948996,43.80768523,195.88,195.82,12.9824366]
[1738947949154,13.53733853,195.85,195.82,12.9824366]
[1738947949357,53.89681376,195.83,195.82,12.9824366]
[1738947949687,59.35681376,195.83,195.82,12.9824366]
[1738947949854,59.23132376,195.83,195.82,12.9824366]
[1738947950056,45.69398523,195.83,195.82,12.9824366]
[1738947950283,0.063,195.86,195.82,12.9824366]
[1738947950872,0.063,195.86,195.85,40.23398523]
[1738947952286,0.063,195.86,195.83,40.23398523]
[1738947952495,0.063,195.86,195.82,12.9824366]
[1738947953291,0.063,195.86,195.82,53.21642183]
[1738947953461,0.063,195.86,195.82,12.9824366]
[1738947954283,40.29698523,195.86,195.82,12.9824366]
[1738947954483,40.23398523,195.83,195.82,12.9824366]
[1738947954782,61.31697872,195.85,195.82,12.9824366]
[1738947955078,20.063,195.86,195.82,18.0891366]
[1738947955279,0.063,195.86,195.82,58.32312183]
[1738947956387,0.063,195.86,195.84,40.23398523]
[1738947956594,0.063,195.86,195.85,40.23398523]
[1738947957280,5.4,195.97,195.85,40.23398523]
[1738947957477,40.23398523,195.89,195.82,58.32302183]
[1738947957677,4.52909855,195.96,195.82,18.0890366]
[1738947957882,5.4,195.97,195.91,40.23398523]
[1738947958073,50.19828523,196.0,195.84,1.0]
[1738947958263,43.80448523,196.05,195.87,20.0]
[1738947958466,43.80448523,196.05,195.99,40.23398523]
[1738947958467,40.23398523,196.05,195.99,40.23398523]
[1738947958691,0.063,196.06,196.01,40.23398523]
[1738947958982,0.063,196.06,196.03,40.23398523]
[1738947959694,40.23398523,196.04,195.97,40.23398523]
[1738947959871,20.0,196.03,195.98,40.23398523]
[1738947960079,40.23398523,196.03,195.96,40.23398523]
[1738947960393,43.80488523,196.03,195.96,40.23398523]
[1738947960703,40.23398523,195.99,195.92,40.23398523]
[1738947960986,0.12549,196.04,195.85,12.7645]
[1738947960987,43.29448523,196.05,195.96,40.23398523]
[1738947961189,40.23398523,196.0,195.92,40.23398523]
[1738947961371,40.23398523,195.98,195.89,40.23398523]
[1738947962061,40.23398523,195.92,195.85,40.23398523]
[1738947962270,40.23398523,195.88,195.82,12.9824366]
[1738947962470,43.29708523,195.88,195.82,12.9824366]
[1738947962671,40.23398523,195.86,195.82,12.9824366]
[1738947962871,3.0631,195.88,195.82,12.9824366]
[1738947962872,44.25478307,195.88,195.82,12.9824366]
[1738947963200,40.23398523,195.88,195.82,12.9824366]
[1738947963490,0.95746298,195.87,195.82,12.9824366]
[1738947963684,40.23398523,195.86,195.82,12.9824366]
[1738947963878,40.23398523,195.84,195.82,12.9824366]
[1738947964478,3.0638,195.83,195.82,12.9824366]
[1738947964665,16.60113853,195.83,195.82,12.9824366]
[1738947964866,17.68440367,195.83,195.82,12.9824366]
[1738947965784,17.68440367,195.83,195.82,3.66e-05]
[1738947967009,4.02157514,195.83,195.82,3.66e-05]
[1738947967213,3.0638,195.83,195.82,3.66e-05]
[1738947967422,3.0633,195.87,195.82,3.66e-05]
[1738947967580,3.0629,195.89,195.83,40.23398523]
[1738947967784,20.0,195.88,195.83,40.23398523]
[1738947967988,13.41184853,195.88,195.82,3.66e-05]
[1738947968595,3.0632,195.87,195.82,3.66e-05]
[1738947968911,40.23398523,195.84,195.82,3.66e-05]
[1738947969495,54.85459258,195.83,195.82,3.66e-05]
[1738947969785,60.25459258,195.83,195.82,3.66e-05]
[1738947970599,63.31839258,195.83,195.82,3.66e-05]
[1738947971385,64.31839258,195.83,195.82,3.66e-05]
[1738947971689,105.55237781,195.83,195.82,3.66e-05]
[1738947971884,0.25098,195.78,195.67,40.23398523]
[1738947972093,40.23398523,195.78,195.7,40.23398523]
[1738947972299,40.23398523,195.82,195.74,40.23398523]
[1738947972493,3.0635,195.85,195.78,40.23398523]
[1738947972706,0.95769372,195.89,195.82,40.23398523]
[1738947972892,5.46,195.9,195.75,1.0]
[1738947973209,3.0621,195.95,195.89,40.23398523]
[1738947973403,3.0621,195.95,195.87,40.23398523]
[1738947973601,40.29698523,195.91,195.83,40.23398523]
[1738947973822,20.0,195.88,195.83,40.23398523]
[1738947974109,40.23398523,195.89,195.82,0.03]
[1738947974500,41.25455998,195.91,195.83,40.23398523]
[1738947974705,0.063,195.91,195.9,40.23398523]
[1738947975295,0.063,195.91,195.85,40.23398523]
[1738947975506,0.063,195.91,195.87,40.23398523]
[1738947975705,0.063,195.91,195.89,40.23398523]
[1738947976203,0.063,195.91,195.9,40.23398523]
[1738947976520,70.7431171,196.1,195.94,6.1036]
[1738947976813,40.23398523,196.02,195.94,40.23398523]
[1738947977018,20.0,195.94,195.82,1.43665555]
[1738947977189,0.95711456,196.01,195.84,1.0]
[1738947977391,0.95696695,196.05,195.86,22.12549]
[1738947977705,0.95696695,196.05,195.87,22.40663505]
[1738947977892,13.66282853,196.03,195.83,5.1064]
[1738947978088,40.23398523,195.95,195.9,40.23398523]
[1738947978402,40.23398523,195.97,195.88,40.23398523]
[1738947978608,40.23398523,195.95,195.88,40.23398523]
[1738947978911,40.23398523,195.93,195.86,40.23398523]
[1738947979116,40.23398523,195.91,195.84,40.23398523]
[1738947979504,20.0,195.92,195.86,40.23398523]
[1738947979702,43.29578523,195.97,195.9,40.23398523]
[1738947979901,43.29538523,195.99,195.85,1.40693664]
[1738947980213,40.23398523,195.93,195.86,40.23398523]
[1738947980596,43.29628523,195.93,195.86,40.23398523]
[1738947980913,43.29628523,195.93,195.84,40.23398523]
[1738947981210,43.29628523,195.93,195.82,0.03]
[1738947981211,40.23398523,195.91,195.83,40.23398523]
[1738947981714,0.25098,195.97,195.83,40.23398523]
[1738947981715,3.0615,195.98,195.89,40.23398523]
[1738947981889,40.23398523,195.97,195.89,40.23398523]
[1738947982311,43.29538523,195.99,195.91,40.23398523]
[1738947982714,20.0,195.96,195.91,40.23398523]
[1738947983418,40.23398523,195.93,195.85,40.23398523]
[1738947983620,40.23398523,195.93,195.82,0.03]
[1738947983621,40.23398523,195.91,195.83,40.23398523]
[1738947984131,20.0,195.88,195.83,40.23398523]
[1738947984325,20.0,195.88,195.82,0.03]
[1738947984616,23.0632,195.88,195.82,0.03]
[1738947985003,40.23398523,195.87,195.82,0.03]